bitfinex/quotes_ETHUSD_20250702
["timestamp","ask_amount","ask_price","bid_price","bid_amount"]
[1751458644217,0.97261921,2446.5,2446.3,0.214]
[1751458644422,0.8108,2446.6,2446.3,0.214]
[1751458644586,0.97244324,2446.5,2446.3,0.214]
[1751458644804,0.97244324,2446.4,2446.3,0.214]
[1751458645317,0.8108,2446.6,2446.3,0.214]
[1751458645620,0.97232789,2446.5,2446.3,0.214]
[1751458645816,0.97231272,2446.4,2446.3,0.214]
[1751458646321,2.13588242,2446.6,2446.3,0.214]
[1751458646521,0.97215699,2446.5,2446.3,0.214]
[1751458646820,0.97215742,2446.4,2446.3,0.214]
[1751458647390,0.8108,2446.6,2446.3,0.214]
[1751458647992,0.97197375,2446.5,2446.3,0.01]
[1751458648296,2.23602421,2446.7,2446.5,0.204]
[1751458648495,0.97180885,2446.6,2446.5,0.204]
[1751458655121,0.99180885,2446.6,2446.5,0.204]
[1751458658356,2.12169216,2446.6,2446.5,0.204]
[1751458658935,2.12169216,2446.6,2446.3,0.01]
[1751458659117,0.97180885,2446.5,2446.3,0.214]
[1751458659313,0.97180885,2446.4,2446.3,0.214]
[1751458664760,0.97342288,2446.4,2446.3,0.214]
[1751458665965,1.79352288,2446.4,2446.3,0.214]
[1751458666731,2.09655303,2446.4,2446.3,0.01]
[1751458667065,13.86333163,2446.4,2446.3,0.01]
[1751458667268,12.64655303,2446.4,2446.3,0.01]
[1751458667568,50.98391865,2446.4,2446.3,0.01]
[1751458667736,10.55,2446.3,2446.1,0.01]
[1751458667937,0.782,2445.7,2444.8,2.071]
[1751458668136,0.204,2445.6,2445.1,0.204]
[1751458668446,0.782,2445.5,2445.1,0.204]
[1751458668852,0.782,2445.7,2445.0,0.7507]
[1751458669057,0.782,2445.7,2445.4,0.204]
[1751458669771,10.204,2445.9,2445.4,0.204]
[1751458669950,12.7262,2445.9,2445.4,0.204]
[1751458670874,2.7262,2445.9,2445.4,0.204]
[1751458671044,0.8295,2445.9,2445.7,0.204]
[1751458671244,0.97335045,2445.8,2445.7,0.204]
[1751458671967,1.21676033,2446.2,2445.7,0.204]
[1751458672187,2.18991129,2446.1,2445.9,0.204]
[1751458672393,0.97315096,2446.0,2445.9,0.204]
[1751458673786,2.04056033,2446.5,2445.9,0.204]
[1751458673969,0.97272448,2446.4,2445.9,0.204]
[1751458674288,0.97272448,2446.3,2445.8,0.796]
[1751458674488,0.97272448,2446.2,2445.8,0.796]
[1751458674647,2.04056033,2446.5,2445.8,0.796]
[1751458674871,0.97274239,2446.4,2446.2,0.204]
[1751458675069,0.97274239,2446.3,2446.2,0.204]
[1751458675288,2.18950272,2446.3,2446.2,0.204]
[1751458676304,1.21676033,2446.3,2446.2,0.204]
[1751458676503,0.8238,2446.5,2446.2,0.204]
[1751458676806,0.97257814,2446.4,2446.2,0.204]
[1751458676991,0.8238,2446.5,2446.2,0.204]
[1751458677306,0.97257872,2446.4,2446.2,0.204]
[1751458677514,2.18909449,2446.3,2445.8,0.796]
[1751458677687,1.62235008,2446.5,2445.8,0.796]
[1751458677688,0.97233416,2446.2,2445.8,10.796]
[1751458677892,0.97233416,2446.1,2445.9,3.55947408]
[1751458678205,1.21676033,2446.4,2446.1,0.204]
[1751458678400,0.97233849,2446.3,2446.1,0.204]
[1751458678611,0.97233849,2446.2,2445.9,3.55947408]
[1751458678819,0.97233849,2446.1,2445.9,3.55947408]
[1751458679021,1.21676033,2446.4,2446.3,0.204]
[1751458679202,2.18915028,2446.4,2446.3,0.204]
[1751458682897,2.99925028,2446.4,2446.3,0.204]
[1751458683090,2.99925028,2446.4,2445.7,2.071]
[1751458683414,2.18915028,2446.3,2446.0,0.214]
[1751458683581,0.97238995,2446.2,2446.0,0.214]
[1751458683782,0.97238995,2446.1,2446.0,0.214]
[1751458684316,0.8301,2446.4,2446.0,0.214]
[1751458684614,0.97250905,2446.3,2446.0,0.214]
[1751458684817,0.8301,2446.4,2446.0,0.214]
[1751458685024,0.97251267,2446.3,2446.0,0.214]
[1751458685323,0.97251267,2446.2,2446.1,0.7555]
[1751458685730,0.97251267,2446.2,2446.1,0.9595]
[1751458685936,0.02,2446.4,2446.1,0.9595]
[1751458686088,0.97268232,2446.3,2446.1,0.7555]
[1751458686408,0.02,2446.4,2446.3,0.204]
[1751458686607,0.9928777,2446.4,2446.3,0.204]
[1751458689419,0.9928777,2446.4,2446.0,0.01]
[1751458689420,8.6879415,2446.4,2446.0,0.01]
[1751458689618,0.9728777,2446.3,2446.0,0.01]
[1751458689831,2.22182413,2446.4,2446.0,0.01]
[1751458689832,0.9728777,2446.2,2446.0,0.01]
[1751458690051,0.9728777,2446.1,2446.0,0.01]
[1751458690536,1.7955777,2446.1,2446.0,0.01]
[1751458690731,2.0968115,2446.1,2446.0,0.01]
[1751458690934,2.6468115,2446.1,2446.0,0.01]
[1751458691240,3.86357183,2446.1,2446.0,0.01]
[1751458691907,2.6468115,2446.1,2446.0,0.01]
[1751458692108,12.6468115,2446.1,2446.0,0.01]
[1751458692343,45.3938023,2446.1,2446.0,0.01]
[1751458692513,45.22431542,2446.1,2444.7,2.8973]
[1751458692715,11.76589147,2445.5,2444.5,0.8056]
[1751458692938,1.3591,2445.3,2444.5,0.8056]
[1751458693112,0.9728777,2445.2,2444.5,0.8056]
[1751458693435,0.9728777,2445.1,2444.5,0.8056]
[1751458693601,1.3591,2445.3,2444.5,0.8056]
[1751458693804,1.49594021,2445.2,2444.5,0.8056]
[1751458694021,0.97174261,2445.1,2444.5,0.8056]
[1751458694225,0.8091,2445.3,2444.5,0.8056]
[1751458694428,0.97121561,2445.2,2444.5,0.8056]
[1751458694630,0.8091,2445.3,2444.5,0.8056]
[1751458694811,0.97121702,2445.2,2444.5,0.8056]
[1751458695016,0.8091,2445.3,2444.6,1.08056]
[1751458695211,0.97121706,2445.2,2444.6,1.08056]
[1751458695418,0.8091,2445.3,2444.6,1.08056]
[1751458695631,0.97087781,2445.2,2444.6,1.08056]
[1751458695834,0.8091,2445.3,2444.6,1.08056]
[1751458696005,0.97087667,2445.2,2444.6,1.08056]
[1751458696340,0.8091,2445.3,2444.6,1.08056]
[1751458696542,0.97064709,2445.2,2444.6,1.08056]
[1751458696707,0.8091,2445.3,2444.6,1.08056]
[1751458696907,0.97065095,2445.2,2444.6,1.08056]
[1751458697127,0.8091,2445.3,2444.6,1.08056]
[1751458697414,6.753,2445.4,2444.2,0.7943]
[1751458697415,0.813,2445.1,2444.2,0.7943]
[1751458697749,0.813,2445.1,2444.2,2.8823]
[1751458699410,0.813,2445.1,2444.8,0.204]
[1751458711135,0.813,2445.1,2444.5,0.01]
[1751458711335,1.017,2445.1,2444.6,0.204]
[1751458711557,7.771,2445.1,2444.6,0.204]
[1751458711754,0.87392209,2445.0,2444.6,0.204]
[1751458712146,7.566,2445.1,2444.5,0.7713]
[1751458712465,7.566,2445.1,2444.8,0.204]
[1751458712970,0.813,2445.1,2444.8,0.204]
[1751458714269,7.567,2445.1,2444.8,0.204]
[1751458714468,0.8026,2445.0,2444.8,0.204]
[1751458714775,0.85248209,2444.9,2444.6,0.204]
[1751458715166,0.8026,2445.0,2444.6,0.204]
[1751458715369,0.8026,2445.0,2444.5,0.01]
[1751458715370,0.8026,2445.0,2444.8,0.204]
[1751458716096,0.8026,2445.0,2444.5,0.01]
[1751458716283,0.8026,2445.0,2444.6,0.204]
[1751458716689,0.96933719,2444.9,2444.6,0.204]
[1751458717387,0.8026,2445.0,2444.6,0.204]
[1751458717588,1.84266463,2444.9,2444.6,0.204]
[1751458717890,0.87279372,2444.9,2444.6,0.204]
[1751458718191,0.96984512,2444.8,2444.6,0.204]
[1751458718351,0.87279372,2444.9,2444.6,0.204]
[1751458718552,0.97054894,2444.8,2444.6,0.204]
[1751458718785,0.8026,2445.0,2444.6,0.204]
[1751458718977,0.97057161,2444.9,2444.6,0.204]
[1751458719176,0.8026,2445.0,2444.6,0.204]
[1751458719489,0.97053196,2444.9,2444.6,0.204]
[1751458719686,0.8154,2444.7,2444.6,0.204]
[1751458719898,0.97146269,2444.7,2444.6,0.204]
[1751458720102,0.97144994,2444.7,2444.6,0.204]
[1751458724474,0.97144994,2444.7,2444.5,0.01]
[1751458724701,1.74854994,2444.6,2444.5,0.01]
[1751458724891,2.06539408,2444.6,2444.5,0.01]
[1751458725888,2.26939408,2444.6,2444.5,0.01]
[1751458726921,9.01239408,2444.6,2444.5,0.01]
[1751458727110,2.26939408,2444.6,2444.5,0.01]
[1751458727431,9.01139408,2444.6,2444.5,0.01]
[1751458727630,2.26939408,2444.6,2444.5,0.01]
[1751458727835,1.74854994,2444.6,2444.5,0.01]
[1751458731798,2.96444141,2444.6,2444.5,0.01]
[1751458732543,19.94994204,2444.6,2444.5,0.01]
[1751458732697,20.3552392,2444.6,2444.5,0.01]
[1751458732896,18.73405057,2444.6,2444.5,0.01]
[1751458733110,21.54513392,2444.6,2444.5,0.01]
[1751458733335,23.16831963,2444.6,2444.5,0.01]
[1751458734235,21.54513392,2444.6,2444.5,0.01]
[1751458734811,23.16757885,2444.6,2444.5,0.01]
[1751458736120,0.99,2444.0,2443.9,0.204]
[1751458737235,0.99,2444.0,2443.9,0.9678]
[1751458737827,0.99,2444.0,2443.9,0.204]
[1751458738538,0.99,2444.0,2443.7,0.9834]
[1751458740340,0.99,2444.0,2443.7,0.204]
[1751458741856,0.97252437,2443.9,2443.7,0.204]
[1751458742007,0.99,2444.0,2443.7,0.204]
[1751458742210,0.97249775,2443.9,2443.7,0.204]
[1751458742530,0.99,2444.0,2443.7,0.204]
[1751458742703,0.97231369,2443.9,2443.7,0.204]
[1751458742911,0.99,2444.0,2443.7,0.204]
[1751458743218,0.99,2444.0,2443.8,0.8089]
[1751458743413,0.99,2444.0,2443.9,6.43550063]
[1751458743615,0.99,2444.0,2443.9,7.36394069]
[1751458743921,0.99,2444.0,2443.9,1.71634006]
[1751458744127,0.99,2444.0,2443.9,0.9919]
[1751458744507,0.99,2444.0,2443.9,5.08372045]
[1751458744706,0.99,2444.0,2443.9,15.08372045]
[1751458745516,0.99,2444.0,2443.9,17.42740063]
[1751458745721,0.99,2444.0,2443.9,10.9919]
[1751458745920,0.99,2444.0,2443.9,13.14383416]
[1751458747049,0.99,2444.0,2443.9,0.204]
[1751458747940,1.96249429,2444.0,2443.9,0.204]
[1751458748159,0.7921,2443.9,2443.6,0.01]
[1751458748366,0.97234696,2443.8,2443.6,0.01]
[1751458748658,0.7921,2443.9,2443.6,0.01]
[1751458748821,0.9722725,2443.8,2443.6,0.01]
[1751458749026,0.9722725,2443.7,2443.6,0.01]
[1751458749239,1.09197166,2443.9,2443.6,0.01]
[1751458749449,0.97203136,2443.8,2443.6,0.01]
[1751458749760,1.09197166,2443.9,2443.6,0.01]
[1751458749989,0.97209193,2443.8,2443.6,0.01]
[1751458750189,0.99,2444.0,2443.7,10.08666868]
[1751458750480,0.99,2444.0,2443.8,1.00966687]
[1751458750778,0.99,2444.0,2443.7,0.8197]
[1751458751484,0.99,2444.0,2443.6,0.01]
[1751458751862,0.97209988,2443.9,2443.6,0.01]
[1751458752062,0.99,2444.0,2443.6,0.01]
[1751458752370,0.97202777,2443.9,2443.6,0.01]
[1751458752583,0.99,2444.0,2443.6,0.01]
[1751458752776,0.97204832,2443.9,2443.6,0.01]
[1751458752975,0.99,2444.0,2443.6,0.01]
[1751458753172,0.9720527,2443.9,2443.6,0.01]
[1751458753371,0.9720527,2443.8,2443.6,0.01]
[1751458753663,0.99,2444.0,2443.6,0.01]
[1751458754000,1.26916622,2443.9,2443.6,0.01]
[1751458754292,0.97194456,2443.8,2443.6,0.01]
[1751458754495,0.29722166,2443.9,2443.6,0.01]
[1751458754681,0.97184752,2443.8,2443.6,0.01]
[1751458754999,0.99,2444.0,2443.6,0.01]
[1751458755295,0.97185316,2443.9,2443.6,0.01]
[1751458755489,0.97185316,2443.8,2443.6,0.01]
[1751458755665,2.28722166,2444.0,2443.6,0.01]
[1751458755866,0.97184139,2443.9,2443.6,0.01]
[1751458756099,0.97184139,2443.8,2443.6,0.01]
[1751458756268,0.99,2444.0,2443.6,0.01]
[1751458756468,0.97181225,2443.9,2443.6,0.01]
[1751458756668,0.97181225,2443.8,2443.6,0.01]
[1751458756995,0.99,2444.0,2443.7,0.7752]
[1751458757175,0.97184609,2443.9,2443.7,0.7752]
[1751458757376,0.99,2444.0,2443.7,0.7752]
[1751458758164,0.99,2444.0,2443.9,0.204]
[1751458758371,1.96197576,2444.0,2443.9,0.204]
[1751458759493,0.97197576,2444.0,2443.9,0.204]
[1751458759871,0.97197576,2444.0,2443.5,2.3089978]
[1751458760202,0.8021,2444.1,2443.7,0.204]
[1751458760390,0.7624,2443.9,2443.7,0.204]
[1751458760897,0.9664,2443.9,2443.5,0.4219978]
[1751458762204,0.97265619,2443.8,2443.5,0.4219978]
[1751458762384,0.204,2443.7,2443.5,0.2179978]
[1751458763879,1.734168,2443.6,2443.5,0.2179978]
[1751458764070,2.284168,2443.6,2443.5,0.2179978]
[1751458764269,13.49970326,2443.6,2443.5,0.2179978]
[1751458764468,13.49940383,2443.6,2443.5,0.2179978]
[1751458764703,13.89391688,2443.6,2443.5,0.2179978]
[1751458765233,15.51636181,2443.6,2443.5,0.2179978]
[1751458766634,20.64891688,2443.6,2443.5,0.2179978]
[1751458767303,13.89391688,2443.6,2443.5,0.2179978]
[1751458767504,22.2717907,2443.6,2443.5,0.2179978]
[1751458767810,15.77569982,2443.6,2443.5,0.2179978]
[1751458768149,2.18647809,2443.6,2443.5,0.2179978]
[1751458768330,0.972668,2443.6,2443.5,0.4219978]
[1751458768706,0.972668,2443.6,2443.5,0.2179978]
[1751458769910,0.204,2443.8,2443.5,0.2179978]
[1751458770925,0.204,2443.8,2443.5,0.2279978]
[1751458771323,16.781,2443.9,2443.5,0.2279978]
[1751458771528,0.97095329,2443.8,2443.5,0.4319978]
[1751458771726,16.781,2443.9,2443.5,0.4319978]
[1751458771908,0.97095277,2443.8,2443.5,0.4319978]
[1751458772109,6.779,2443.9,2443.5,0.4319978]
[1751458772310,0.97093634,2443.8,2443.5,0.4319978]
[1751458772533,6.779,2443.9,2443.5,0.4319978]
[1751458772737,0.97093661,2443.8,2443.5,0.4319978]
[1751458772943,6.779,2443.9,2443.5,0.4319978]
[1751458773139,0.97097517,2443.8,2443.5,0.4319978]
[1751458773344,6.776,2444.0,2443.5,0.2279978]
[1751458773512,0.97101027,2443.9,2443.7,0.204]
[1751458773837,0.97101027,2443.8,2443.5,0.2279978]
[1751458774040,10.204,2443.9,2443.5,0.2279978]
[1751458774223,0.97102367,2443.8,2443.5,0.2279978]
[1751458774413,10.204,2443.9,2443.5,0.2279978]
[1751458774615,2.87320718,2443.8,2443.5,0.2279978]
[1751458774945,1.90205677,2443.8,2443.5,0.2279978]
[1751458775157,0.97173883,2443.7,2443.5,0.2279978]
[1751458775355,6.982,2443.9,2443.5,0.2279978]
[1751458775642,0.97173971,2443.8,2443.5,0.2279978]
[1751458775945,18.19581009,2444.1,2443.5,0.2279978]
[1751458776124,0.97175154,2444.0,2443.7,0.204]
[1751458776321,0.97175154,2443.9,2443.7,0.204]
[1751458776528,8.19481009,2444.1,2443.8,0.8154]
[1751458776843,0.97226125,2444.0,2443.8,0.8154]
[1751458777045,0.97226125,2443.9,2443.7,0.204]
[1751458777248,0.97226125,2443.8,2443.5,2.5229978]
[1751458777420,0.97226125,2443.7,2443.5,2.5229978]
[1751458777620,0.204,2443.9,2443.5,2.5229978]
[1751458777849,0.9725367,2443.8,2443.5,2.5229978]
[1751458778160,1.19314172,2443.9,2443.5,2.5229978]
[1751458778161,0.9725367,2443.7,2443.5,2.5229978]
[1751458778362,1.21381009,2444.0,2443.6,0.8133]
[1751458778651,0.204,2444.2,2443.7,0.204]
[1751458778825,0.97269375,2444.1,2443.7,0.204]
[1751458779020,0.97269375,2444.0,2443.7,0.204]
[1751458779221,0.204,2444.2,2443.7,0.204]
[1751458779422,0.97264602,2444.1,2443.7,0.204]
[1751458779629,0.97264602,2444.0,2443.7,0.204]
[1751458779954,0.204,2444.2,2443.7,0.204]
[1751458780123,0.97264577,2444.1,2443.7,0.204]
[1751458780318,0.97264577,2444.0,2443.7,0.204]
[1751458780524,7.98781009,2444.3,2443.9,0.204]
[1751458780721,0.97265505,2444.2,2443.9,0.204]
[1751458781051,1.63836645,2444.5,2443.8,0.8262]
[1751458781052,8.21181009,2444.5,2444.1,0.204]
[1751458781258,2.18652807,2444.4,2444.1,0.204]
[1751458781552,0.97271798,2444.3,2444.1,0.204]
[1751458781756,0.97271798,2444.2,2444.1,0.204]
[1751458781964,0.97271798,2444.2,2443.9,0.204]
[1751458782172,1.28428945,2444.4,2443.9,0.204]
[1751458782457,0.97251434,2444.3,2443.9,0.204]
[1751458782747,0.97251434,2444.2,2443.9,0.204]
[1751458782917,1.28428945,2444.4,2443.9,0.204]
[1751458783121,1.90176315,2444.3,2443.9,0.204]
[1751458783317,0.204,2444.4,2443.9,0.204]
[1751458783318,0.9725532,2444.2,2443.9,0.204]
[1751458783518,8.21181009,2444.5,2444.1,0.204]
[1751458783728,0.97241339,2444.4,2444.1,0.204]
[1751458783956,0.97241339,2444.3,2444.1,0.204]
[1751458784252,0.97241339,2444.2,2444.1,0.204]
[1751458785846,0.97230283,2444.4,2444.1,0.972]
[1751458786046,0.02,2444.5,2444.1,0.972]
[1751458786354,0.97230507,2444.4,2444.2,0.204]
[1751458786652,0.02,2444.5,2444.2,0.204]
[1751458786956,0.97212014,2444.4,2444.2,0.204]
[1751458787249,1.84058101,2444.5,2444.2,0.204]
[1751458787419,0.97190698,2444.4,2444.2,0.204]
[1751458787624,2.59538101,2444.5,2443.9,2.9319]
[1751458787854,0.97190507,2444.4,2444.1,0.204]
[1751458788153,1.49850962,2444.4,2444.1,0.204]
[1751458789426,0.97166244,2444.3,2444.1,0.204]
[1751458789625,1.49850962,2444.4,2443.8,2.099]
[1751458789626,0.97166655,2444.2,2443.8,2.099]
[1751458789821,1.70250962,2444.4,2443.9,0.204]
[1751458790046,1.52283874,2444.3,2443.9,0.204]
[1751458790246,0.97166867,2444.2,2443.9,0.204]
[1751458790467,0.55117007,2444.3,2443.9,0.204]
[1751458790670,0.97164077,2444.2,2443.9,0.204]
[1751458790967,0.55117007,2444.3,2443.9,0.204]
[1751458791162,0.97161832,2444.2,2444.0,0.8188]
[1751458791483,17.99681009,2444.5,2444.0,0.8188]
[1751458791651,17.99681009,2444.5,2444.1,0.204]
[1751458791652,0.97161236,2444.4,2444.1,0.204]
[1751458791968,0.02,2444.5,2444.0,0.8188]
[1751458792174,0.97164167,2444.4,2444.3,0.204]
[1751458792673,0.97164167,2444.4,2443.5,4.32042876]
[1751458792674,1.79754167,2444.4,2443.8,2.098]
[1751458792860,0.97164167,2444.3,2444.0,0.204]
[1751458793053,1.12903518,2444.4,2444.0,0.204]
[1751458793054,0.97164167,2444.2,2444.0,0.204]
[1751458793259,1.12903518,2444.4,2444.0,0.204]
[1751458793564,0.97144021,2444.3,2444.0,0.204]
[1751458793741,0.30313518,2444.4,2444.0,0.204]
[1751458793942,0.97145685,2444.3,2444.0,0.204]
[1751458794246,0.30313518,2444.4,2444.0,0.204]
[1751458794451,0.97148547,2444.3,2444.0,0.204]
[1751458794778,0.30313518,2444.4,2444.0,0.204]
[1751458794956,0.97148558,2444.3,2444.0,0.204]
[1751458795156,0.30313518,2444.4,2444.0,0.204]
[1751458795355,0.97174153,2444.3,2444.0,0.204]
[1751458795556,1.14988767,2444.3,2444.0,0.204]
[1751458796156,1.78970594,2444.2,2444.0,0.204]
[1751458796361,0.818,2444.2,2444.0,0.204]
[1751458796853,1.14988767,2444.3,2444.0,0.204]
[1751458797069,0.97201923,2444.2,2444.0,0.204]
[1751458797358,1.14988767,2444.3,2444.0,0.204]
[1751458797547,1.19790011,2444.2,2444.0,0.204]
[1751458797742,0.22547229,2444.2,2444.0,0.204]
[1751458797973,0.22547229,2444.2,2443.8,0.204]
[1751458798169,0.97278765,2444.1,2443.8,0.204]
[1751458798375,0.22547229,2444.2,2443.8,0.204]
[1751458798564,0.97279076,2444.1,2443.8,0.204]
[1751458798777,0.22547229,2444.2,2443.8,0.204]
[1751458798974,0.97279072,2444.1,2443.8,0.204]
[1751458799174,0.97279072,2444.0,2443.8,0.204]
[1751458799379,0.97279072,2443.9,2443.8,0.204]
[1751458800476,1.21381009,2444.3,2443.8,0.9855]
[1751458800687,0.9732755,2444.2,2443.9,0.7815]
[1751458800847,1.23381009,2444.5,2444.2,0.204]
[1751458801051,0.97327958,2444.4,2444.3,0.7831]
[1751458801453,0.97327958,2444.4,2444.3,0.9871]
[1751458801863,0.02,2444.5,2444.3,0.9871]
[1751458802150,0.97345981,2444.4,2444.0,0.7833]
[1751458802350,0.97345981,2444.3,2444.1,0.204]
[1751458802552,0.8159,2444.2,2443.6,3.0917]
[1751458802756,0.204,2444.1,2443.6,3.0917]
[1751458803296,0.97334471,2444.0,2443.6,3.0917]
[1751458803501,0.204,2444.1,2443.6,3.0917]
[1751458803660,0.97352566,2444.0,2443.6,0.9937]
[1751458803853,0.42737101,2444.1,2443.6,0.9937]
[1751458803854,0.97352566,2443.9,2443.6,0.9937]
[1751458804049,0.42737101,2444.1,2443.6,0.9937]
[1751458804384,0.97342654,2444.0,2443.6,0.9937]
[1751458804679,0.97342654,2443.9,2443.6,0.9937]
[1751458804859,0.42737101,2444.1,2443.6,0.9937]
[1751458805187,0.97357376,2444.0,2443.6,0.9937]
[1751458805487,0.97357376,2443.9,2443.6,0.9937]
[1751458805671,0.42737101,2444.1,2443.6,0.9937]
[1751458805985,0.97379462,2444.0,2443.6,0.9937]
[1751458806173,0.97379462,2443.9,2443.6,0.9937]
[1751458806486,0.97379462,2443.8,2443.6,0.9937]
[1751458806664,1.6411811,2444.1,2443.6,0.9937]
[1751458806865,0.97389557,2444.0,2443.6,0.9937]
[1751458807065,0.97389557,2443.9,2443.6,0.9937]
[1751458807360,0.97389557,2443.8,2443.6,0.9937]
[1751458807574,1.6411811,2444.1,2443.6,0.9937]
[1751458807767,0.97400592,2444.0,2443.6,0.9937]
[1751458807958,0.97400592,2443.9,2443.6,0.9937]
[1751458808285,0.97400592,2443.8,2443.6,0.9937]
[1751458808486,1.6411811,2444.1,2443.6,0.9937]
[1751458808676,2.51384594,2444.0,2443.6,0.9937]
[1751458808878,0.9740811,2443.9,2443.6,0.9937]
[1751458809074,0.9740811,2443.8,2443.6,0.9937]
[1751458809274,0.9740811,2443.7,2443.6,0.9937]
[1751458810088,0.9740811,2443.7,2443.6,0.204]
[1751458810653,0.9740811,2443.7,2443.6,1.29618978]
[1751458810851,1.21381009,2444.1,2443.7,0.7928]
[1751458811055,0.97356962,2444.0,2443.7,0.7928]
[1751458811287,0.97356962,2443.9,2443.7,0.7928]
[1751458811484,0.97356962,2443.8,2443.7,0.7928]
[1751458811688,0.97356962,2443.8,2443.7,2.33705745]
[1751458811986,1.21381009,2444.3,2443.9,0.7911]
[1751458812188,0.97350322,2444.2,2444.1,0.204]
[1751458820669,1.81160322,2444.2,2443.9,0.204]
[1751458820999,0.97350322,2444.1,2443.9,0.204]
[1751458821220,1.0421,2444.2,2443.9,0.204]
[1751458821504,1.1986933,2444.1,2443.9,0.204]
[1751458821700,0.97310229,2444.0,2443.6,2.9]
[1751458821998,0.42959101,2444.1,2443.6,2.288]
[1751458822201,0.97313924,2444.0,2443.6,2.288]
[1751458822499,2.1134152,2443.9,2443.6,2.288]
[1751458822702,0.22559101,2444.1,2443.6,2.084]
[1751458822901,0.97305781,2444.0,2443.8,0.9962]
[1751458823102,0.97305781,2443.9,2443.8,0.9962]
[1751458823301,0.02,2444.2,2443.8,0.9962]
[1751458823505,0.97317563,2444.1,2443.8,1.74384497]
[1751458823703,0.02,2444.2,2444.1,0.204]
[1751458823885,0.99321944,2444.2,2444.1,0.204]
[1751458827807,0.99321944,2444.2,2444.1,1.0143]
[1751458828012,0.02,2444.2,2444.1,1.0143]
[1751458832128,0.99296617,2444.2,2444.1,1.0143]
[1751458832315,0.02,2444.2,2444.1,1.0143]
[1751458833282,0.02,2444.2,2444.1,1.75935497]
[1751458835001,0.02,2444.2,2444.1,8.1956047]
[1751458836226,0.02,2444.2,2444.1,1.75935497]
[1751458836392,0.02,2444.2,2444.1,0.204]
[1751458837087,0.99293622,2444.2,2444.1,0.204]
[1751458837884,1.81523622,2444.2,2444.1,0.204]
[1751458841914,0.99293622,2444.2,2444.1,0.204]
[1751458842816,0.99293622,2444.2,2444.1,0.9827]
[1751458843319,0.99293622,2444.2,2444.1,1.72459497]
[1751458843829,0.99293622,2444.2,2444.1,0.204]
[1751458844418,0.02,2444.2,2444.1,0.204]
[1751458844586,0.02,2444.5,2444.3,10.0]
[1751458844788,0.02,2444.5,2444.4,13.6465332]
[1751458845210,0.02,2444.5,2444.4,23.6465332]
[1751458845419,0.02,2444.5,2444.4,27.09319443]
[1751458845815,0.02,2444.5,2444.4,29.91745307]
[1751458846791,0.02,2444.5,2444.4,33.21665307]
[1751458847311,0.02,2444.5,2444.4,30.46745307]
[1751458847500,0.02,2444.5,2444.4,56.09595007]
[1751458847711,0.02,2445.2,2445.0,4.08989528]
[1751458847910,0.02,2445.2,2445.1,3.44808953]
[1751458848102,0.99295558,2445.2,2445.1,3.44808953]
[1751458850525,0.99295558,2445.2,2445.1,7.5379018]
[1751458850703,0.02,2445.2,2445.1,17.5379018]
[1751458850909,0.02,2445.2,2445.1,13.44808953]
[1751458851123,0.02,2445.2,2445.1,17.5379018]
[1751458851709,0.02,2445.2,2445.1,18.0879018]
[1751458855528,0.02,2445.5,2445.4,14.91811054]
[1751458855733,0.02,2445.5,2445.4,33.00237378]
[1751458855908,0.02,2445.5,2445.4,33.55237378]
[1751458856112,0.02,2446.0,2445.9,0.8318]
[1751458856316,0.02,2446.0,2445.9,9.8278]
[1751458859830,0.02,2446.0,2445.9,23.91627459]
[1751458860035,0.02,2446.0,2445.9,23.55434953]
[1751458860336,0.02,2446.0,2445.9,23.54834953]
[1751458861844,0.02,2446.0,2445.9,27.63682412]
[1751458862209,0.02,2446.0,2445.9,28.18682412]
[1751458862405,0.02,2446.0,2445.9,39.60827112]
[1751458862611,0.02,2446.4,2446.3,14.08780607]
[1751458862947,0.02,2446.4,2446.3,30.83491444]
[1751458863110,0.02,2446.4,2446.3,31.58891444]
[1751458863312,0.02,2446.4,2446.3,31.03891444]
[1751458863945,0.02,2446.4,2446.3,27.50110837]
[1751458864142,0.02,2446.4,2446.3,33.93613741]
[1751458864923,0.02,2446.4,2446.3,23.13433134]
[1751458865127,0.02,2446.4,2446.3,13.32382297]
[1751458865542,0.02,2446.4,2446.3,26.19762904]
[1751458865741,0.02,2446.4,2446.3,22.10982297]
[1751458868829,0.02,2446.4,2446.3,26.19762904]
[1751458869943,0.02,2446.4,2446.3,36.00813741]
[1751458871133,0.02,2446.6,2446.5,4.63747189]
[1751458871468,0.02,2446.6,2446.5,26.38029613]
[1751458871631,0.02,2446.7,2446.6,4.63730483]
[1751458871831,0.02,2447.0,2446.6,4.63730483]
[1751458871832,0.02,2447.0,2446.9,14.08680371]
[1751458872043,0.02,2447.0,2446.9,30.30705315]
[1751458872430,0.02,2447.3,2447.1,4.08646969]
[1751458872738,0.02,2447.3,2447.1,19.59009929]
[1751458872936,0.02,2447.3,2447.1,19.79409929]
[1751458873132,0.02,2447.3,2447.1,30.34409929]
[1751458873726,0.02,2447.3,2447.1,33.16421807]
[1751458875040,0.02,2447.3,2447.2,4.63630271]
[1751458875231,0.02,2447.3,2447.2,9.42642695]
[1751458875632,0.02,2447.3,2447.2,9.42242695]
[1751458876859,0.02,2447.3,2447.2,37.25254195]
[1751458877534,0.02,2447.7,2447.3,20.13449674]
[1751458877751,0.02,2447.7,2447.3,19.64234274]
[1751458877952,0.02,2447.7,2447.3,21.98956571]